bitfinex-derivatives/quotes_ETHF0:USTF0_20250624
["timestamp","ask_amount","ask_price","bid_price","bid_amount"]
[1750755975943,0.715,2404.4,2404.0,3.5510326]
[1750755976445,0.715,2404.4,2404.1,1.3876]
[1750755977446,0.6665,2404.5,2404.3,3.2078]
[1750755977846,1.4276,2404.8,2404.3,3.2078]
[1750755978044,0.7043,2404.7,2404.3,3.2078]
[1750755978246,1.4248,2404.6,2404.3,3.2078]
[1750755978655,0.7043,2404.7,2404.3,3.2078]
[1750755979348,1.4248,2404.6,2404.3,3.2078]
[1750755980352,0.7680515,2404.7,2404.3,3.2078]
[1750755980753,0.7680515,2404.7,2404.4,1.4194]
[1750755980945,0.0637515,2404.7,2404.4,1.4194]
[1750755981146,0.0637515,2404.7,2404.5,0.6952]
[1750755981345,0.0637515,2404.7,2404.6,0.6687]
[1750755981546,0.0637515,2404.7,2404.6,3.8765]
[1750755981949,0.0637515,2404.7,2404.6,5.2692]
[1750755983445,0.0637515,2404.7,2404.6,3.8765]
[1750755984359,3.2078,2405.5,2404.6,3.8765]
[1750755984560,3.2078,2405.5,2404.9,3.2078]
[1750755984758,3.2078,2405.5,2405.0,0.6609]
[1750755984951,1.3984,2405.4,2405.0,0.6609]
[1750755985650,1.3984,2405.4,2405.0,2.0907]
[1750755986052,1.4236,2405.6,2405.0,2.0907]
[1750755986255,1.4236,2405.6,2405.3,3.2078]
[1750755986954,0.713,2405.6,2405.3,3.2078]
[1750755987360,3.2078,2405.9,2405.3,3.2078]
[1750755987559,3.2078,2405.9,2405.4,1.3586]
[1750755987761,2.1181,2405.8,2405.4,1.3586]
[1750755988664,2.1181,2405.8,2405.4,0.6977]
[1750755988854,0.7043,2405.7,2405.3,3.2078]
[1750755989259,1.4294,2405.6,2405.3,3.2078]
[1750755990363,3.2078,2405.4,2404.3,3.2078]
[1750755990555,4.5885,2405.3,2404.6,3.2078]
[1750755990862,0.0637515,2404.7,2404.6,3.2078]
[1750755994061,0.0637515,2404.7,2404.6,4.5691]
[1750755994758,0.0637515,2404.7,2404.6,3.2078]
[1750755996461,0.0637515,2404.7,2404.6,4.658]
[1750755996664,0.0637515,2404.7,2404.6,9.658]
[1750755997362,0.0637515,2404.7,2404.6,12.92128622]
[1750755998263,0.0637515,2404.7,2404.6,9.658]
[1750756000959,0.0637515,2404.7,2404.6,7.9215523]
[1750756001167,0.0637515,2404.7,2404.6,4.658]
[1750756003767,0.0637515,2404.7,2404.6,12.9215523]
[1750756003968,3.921,2405.8,2404.6,9.658]
[1750756004160,3.921,2405.8,2405.3,3.2078]
[1750756004366,0.6555,2405.7,2405.3,3.2078]
[1750756004568,1.9995,2405.7,2405.3,3.2078]
[1750756005568,3.2078,2405.8,2405.3,3.2078]
[1750756005867,2.867,2406.4,2405.1,5.26360213]
[1750756005868,0.6555,2406.3,2405.7,3.2078]
[1750756006075,2.0811,2406.3,2405.7,3.2078]
[1750756006364,0.6711,2406.2,2405.7,3.2078]
[1750756006569,1.4256,2406.1,2405.7,3.2078]
[1750756007570,0.6711,2406.2,2405.7,3.2078]
[1750756008370,2.0967,2406.2,2405.7,3.2078]
[1750756009073,2.0967,2406.2,2405.8,1.3447]
[1750756009470,0.6555,2406.3,2405.8,1.3447]
[1750756009868,2.0606,2406.3,2405.8,1.3447]
[1750756010175,0.0637515,2406.2,2405.8,1.3447]
[1750756010472,0.0637515,2406.2,2405.8,1.69122771]
[1750756010875,1.4688515,2406.2,2405.8,1.69122771]
[1750756012273,1.4688515,2406.2,2406.1,3.2078]
[1750756012274,0.0637515,2406.2,2406.1,3.2078]
[1750756014866,0.0637515,2406.2,2406.1,3.9336]
[1750756016183,0.0637515,2406.2,2406.1,3.2078]
[1750756017772,0.0637515,2406.2,2405.8,1.03502771]
[1750756017773,0.0637515,2406.2,2405.8,4.24282771]
[1750756017969,2.1108,2406.1,2405.8,4.24282771]
[1750756020778,2.7857,2406.1,2405.8,3.55432771]
[1750756024982,2.48760551,2407.7,2406.2,3.2078]
[1750756025186,3.80380551,2408.5,2407.5,3.2078]
[1750756025384,3.31680735,2408.7,2406.5,3.26470213]
[1750756025385,1.3162,2408.3,2407.9,3.2078]
[1750756025688,0.7077,2408.2,2408.0,3.2078]
[1750756025886,1.3162,2408.3,2408.0,3.2078]
[1750756026189,0.7077,2409.2,2408.0,6.47250213]
[1750756026483,0.7077,2409.2,2407.7,4.07596541]
[1750756026484,0.7077,2409.2,2409.1,3.2078]
[1750756027082,1.3162,2409.6,2409.1,3.2078]
[1750756027288,1.3162,2409.6,2409.5,3.2078]
[1750756027892,6.3162,2409.6,2408.6,3.63328773]
[1750756028090,3.2078,2409.3,2408.6,3.63328773]
[1750756028284,1.3522,2409.2,2408.6,3.63328773]
[1750756028585,2.0526,2409.2,2408.2,3.2078]
[1750756029090,2.0526,2409.2,2408.5,3.2078]
[1750756029292,0.7134,2409.1,2408.5,3.2078]
[1750756029584,1.3522,2409.0,2408.5,3.2078]
[1750756030788,0.7004,2409.2,2408.9,3.2078]
[1750756031183,5.7004,2409.2,2408.9,3.2078]
[1750756031386,0.7165,2409.1,2408.6,3.2078]
[1750756031580,0.7165,2409.1,2408.9,3.2078]
[1750756032990,0.7165,2409.1,2408.6,3.2078]
[1750756036195,0.7165,2409.1,2408.9,3.2078]
[1750756037293,0.7004,2409.2,2408.9,3.2078]
[1750756039601,0.7641515,2409.2,2408.9,3.2078]
[1750756041692,5.7641515,2409.2,2408.9,3.2078]
[1750756041896,5.7641515,2409.2,2408.4,3.2078]
[1750756042196,0.7641515,2409.2,2408.4,3.2078]
[1750756043585,3.2078,2409.1,2408.4,3.2078]
[1750756043791,0.6993,2409.0,2408.4,3.2078]
[1750756044092,3.2078,2409.1,2408.7,3.2078]
[1750756044294,3.9071,2409.1,2408.7,3.2078]
[1750756044792,0.6993,2409.1,2408.7,3.2078]
[1750756045995,0.6993,2409.1,2409.0,3.2078]
[1750756046191,0.0637515,2409.2,2409.0,3.2078]
[1750756046895,0.0637515,2409.2,2408.3,1.3595]
[1750756046896,0.0637515,2409.2,2408.7,3.2078]
[1750756047096,3.2715515,2409.2,2408.7,3.2078]
[1750756047293,0.6668,2409.1,2408.7,3.2078]
[1750756048098,3.2715515,2409.2,2408.7,3.2078]
[1750756048901,1.3748,2409.1,2408.7,3.2078]
[1750756049202,3.2715515,2409.2,2408.7,3.2078]
[1750756049391,3.2715515,2409.2,2408.8,2.1195]
[1750756049592,0.0637515,2409.2,2409.0,3.2078]
[1750756050704,0.0637515,2409.2,2409.1,1.3946]
[1750756051394,0.0637515,2409.2,2409.0,3.2078]
[1750756052300,0.0637515,2409.2,2409.0,4.5944]
[1750756054601,3.2078,2410.1,2409.0,12.03208059]
[1750756054799,3.2078,2409.9,2409.3,3.2078]
[1750756055000,1.374,2409.8,2409.3,3.2078]
[1750756055198,2.0862,2409.8,2409.3,3.2078]
[1750756055601,0.99721039,2409.7,2409.3,3.2078]
[1750756055802,0.7122,2409.8,2409.3,3.2078]
[1750756056105,1.374,2410.2,2409.6,3.2078]
[1750756056299,0.99705323,2410.1,2409.7,0.6761]
[1750756056601,1.0052793,2409.9,2409.7,0.6761]
[1750756057200,1.0052793,2409.9,2409.6,3.2078]
[1750756057400,2.0455,2409.8,2409.6,3.2078]
[1750756057704,4.2130793,2409.7,2409.3,0.6761]
[1750756057904,1.0052793,2409.7,2409.6,3.2078]
[1750756058203,1.0052793,2409.7,2409.3,0.6761]
[1750756058500,2.3385793,2409.7,2409.3,0.6761]
[1750756058806,1.0052793,2409.5,2409.3,0.6761]
[1750756059005,1.0052793,2409.5,2409.4,4.5907]
[1750756064802,1.0052793,2409.5,2409.1,3.2078]
[1750756065011,0.0637515,2409.2,2409.1,5.2568]
[1750756065609,1.0690308,2409.2,2409.1,5.2568]
[1750756067405,1.0690308,2409.2,2408.3,5.70635157]
[1750756067406,7.07160763,2409.2,2407.8,0.34022174]
[1750756067606,3.2078,2408.4,2407.8,0.701]
[1750756067809,3.2078,2408.4,2407.8,2.0254]
[1750756068706,1.0052793,2408.1,2408.0,3.2078]
[1750756069202,1.0052793,2408.1,2407.8,2.0254]
[1750756069402,4.2130793,2408.1,2407.4,3.2078]
[1750756069717,3.2078,2407.5,2406.5,0.34432314]
[1750756069903,3.2078,2406.9,2406.3,5.2272]
[1750756070110,3.2078,2406.6,2406.3,2.0194]
[1750756070313,3.2078,2406.6,2406.3,0.701]
[1750756070704,3.2078,2406.6,2406.0,3.2078]
[1750756070904,1.0052793,2406.5,2406.0,3.2078]
[1750756071709,1.0052793,2406.5,2406.1,1.3184]
[1750756071915,1.0052793,2406.3,2406.1,1.3184]
[1750756072913,1.0052793,2406.2,2405.6,3.928]
[1750756073216,1.0052793,2406.2,2405.2,3.2078]
[1750756073217,3.2078,2406.0,2405.2,3.2078]
[1750756073415,1.3362,2405.9,2405.2,3.2078]
[1750756073618,1.3362,2405.9,2405.3,1.4568]
[1750756073814,1.0052793,2405.6,2405.3,1.4568]
[1750756074016,1.0052793,2405.6,2405.5,3.2078]
[1750756074215,3.2078,2406.0,2405.5,8.2078]
[1750756074416,1.3362,2406.7,2405.9,3.2078]
[1750756074611,3.2078,2406.8,2406.2,3.2078]
[1750756074815,1.3362,2406.6,2406.0,1.4568]
[1750756075713,1.3362,2406.6,2406.2,3.2078]
[1750756076217,3.2078,2406.8,2406.2,3.2078]
[1750756076619,1.405,2406.7,2406.2,3.2078]
[1750756078321,3.2078,2407.2,2406.2,3.2078]
[1750756078511,1.4191,2407.1,2406.5,3.2078]
[1750756078719,1.4191,2407.1,2406.6,1.3384]
[1750756079318,3.2078,2407.6,2406.6,1.3384]
[1750756079521,1.4191,2407.5,2406.8,3.2078]
[1750756079711,3.2078,2407.3,2406.5,3.2078]
[1750756079914,3.2078,2406.9,2406.5,3.2078]
[1750756080115,1.4191,2406.8,2406.5,3.2078]
[1750756080519,3.2078,2407.6,2406.5,3.2078]
[1750756080718,3.2078,2407.3,2406.5,3.2078]
[1750756081224,1.4191,2407.2,2406.5,3.2078]
[1750756081427,1.4191,2407.2,2406.6,1.4511]
[1750756081823,1.4191,2407.2,2406.5,3.2078]
[1750756083119,3.2078,2407.0,2406.5,3.2078]
[1750756083327,1.4448,2406.9,2406.5,3.2078]
[1750756084326,3.2078,2407.0,2406.5,3.2078]
[1750756085218,1.4707515,2406.9,2406.5,3.2078]
[1750756085419,0.0637515,2406.9,2406.5,3.2078]
[1750756085820,0.0637515,2406.9,2406.6,1.4184]
[1750756086426,0.0637515,2406.9,2406.8,3.2078]
[1750756087024,0.0637515,2406.9,2406.8,4.6262]
[1750756087331,0.0637515,2406.9,2405.6,9.768]
[1750756087332,0.0637515,2406.9,2406.5,3.2078]
[1750756088629,1.3429,2406.8,2406.5,3.2078]
[1750756090338,1.3429,2406.8,2406.0,3.2078]
[1750756090634,1.3429,2406.8,2405.5,3.2078]
[1750756090635,3.2078,2406.1,2405.5,3.2078]
[1750756090830,3.2078,2406.6,2405.4,0.6624]
[1750756091036,3.2078,2406.6,2405.6,3.2078]
[1750756091333,1.3559,2406.5,2405.8,3.2078]
[1750756091524,1.3559,2406.5,2405.9,1.4071]
[1750756091725,3.2078,2406.6,2405.9,1.4071]
[1750756091938,3.2078,2406.6,2406.0,0.6564]
[1750756092334,3.2078,2406.6,2406.1,1.4071]
[1750756092735,1.3559,2406.5,2406.0,0.6564]
[1750756094134,1.3559,2406.5,2406.1,1.3388]
[1750756095441,1.3559,2406.5,2406.0,0.6564]
[1750756096440,3.2078,2406.3,2406.0,0.6564]
[1750756097941,3.2078,2406.3,2406.1,1.3528]
[1750756098840,3.2078,2406.3,2406.0,0.6564]
[1750756100237,3.2078,2406.3,2405.5,1.3528]
[1750756100438,1.4527,2406.2,2405.7,3.2078]
[1750756100639,3.2715515,2406.3,2405.8,1.3871]
[1750756102041,0.0637515,2406.3,2406.0,3.2078]
[1750756102247,0.0637515,2406.3,2406.1,1.3871]
[1750756103148,3.2715515,2406.3,2405.7,3.2078]
[1750756103347,3.2078,2405.9,2405.3,3.2078]
[1750756103744,1.4539,2405.8,2405.3,3.2078]
[1750756105249,3.2078,2405.9,2405.3,3.2078]
[1750756105750,3.2078,2405.5,2405.1,0.33806165]
[1750756105950,1.3544,2405.4,2404.9,3.2078]
[1750756106141,3.2078,2405.2,2404.0,3.2078]
[1750756106348,3.2078,2404.7,2404.1,1.3399]
[1750756106546,3.2078,2404.7,2404.1,1.67818906]
[1750756107048,3.2078,2404.7,2404.1,2.0457]
[1750756107443,3.2078,2405.0,2404.1,2.0457]
[1750756107650,3.2078,2405.0,2404.4,3.2078]
[1750756107943,3.2078,2405.0,2404.5,2.0504]
[1750756108549,3.2078,2405.4,2404.7,3.2078]
[1750756108856,4.5995,2405.7,2404.8,1.3148]
[1750756109046,4.5995,2405.7,2405.0,3.2078]
[1750756109348,4.5995,2405.7,2405.1,1.3148]
[1750756109744,4.5995,2405.7,2405.2,0.723]
[1750756109945,3.9088,2405.7,2405.2,0.723]
[1750756110149,3.9088,2405.7,2405.3,1.3148]
[1750756110652,3.2078,2405.7,2405.3,1.3148]
[1750756113354,4.5622,2406.0,2405.3,1.3148]
[1750756115244,3.2078,2405.7,2405.2,0.723]
[1750756115453,3.2078,2405.4,2405.2,0.723]
[1750756115747,3.2078,2405.4,2404.8,0.7058]
[1750756115948,3.2078,2405.4,2404.9,2.0046]
[1750756116254,3.2078,2405.4,2404.9,0.6791]
[1750756116450,3.2078,2405.1,2404.4,3.2078]
[1750756116658,1.3396,2405.0,2404.4,3.2078]
[1750756116951,1.3396,2405.0,2404.5,1.3255]
[1750756117757,0.7143,2405.3,2404.7,3.2078]
[1750756117948,3.2078,2405.5,2404.8,1.3636]
[1750756118457,3.2078,2405.5,2404.7,3.2078]
[1750756118754,3.2078,2405.2,2404.4,4.5714]
[1750756118953,3.2078,2404.9,2404.4,1.3636]
[1750756119252,1.4307,2404.8,2404.4,1.3636]
[1750756120357,3.2078,2404.9,2404.4,4.5714]
[1750756120855,0.7011,2405.1,2404.4,4.5714]
[1750756121354,1.3305,2405.0,2404.4,4.5714]
[1750756121542,3.2078,2404.7,2404.1,3.55578787]
[1750756121746,1.3305,2404.6,2403.8,3.2078]
[1750756121953,1.3305,2404.6,2403.9,1.3716]
[1750756122462,3.2078,2404.4,2403.8,3.5537478]
[1750756122645,1.3305,2404.3,2403.8,3.5537478]
[1750756123245,1.3305,2404.3,2403.8,3.2078]
[1750756123447,3.2078,2404.1,2403.6,0.7198]
[1750756123758,1.3305,2404.0,2403.6,0.7198]
[1750756124460,1.3305,2404.0,2403.6,1.06099735]
[1750756126055,3.2078,2404.1,2403.6,1.06099735]
[1750756126453,3.2078,2404.1,2403.7,1.3713]
[1750756127458,3.2078,2404.7,2403.7,4.5791]
[1750756127664,1.4078,2404.6,2404.1,3.2078]
[1750756127858,3.2078,2405.1,2404.4,3.2078]
[1750756128058,4.6156,2405.1,2404.5,2.0047]
[1750756128259,4.6156,2405.1,2404.5,0.6571]
[1750756128662,3.2078,2404.8,2404.2,0.71]
[1750756128854,1.4078,2404.7,2404.2,0.71]
[1750756131469,3.2078,2404.8,2404.3,1.3663]
[1750756132760,3.2078,2404.8,2404.2,0.71]
[1750756133161,1.3358,2404.7,2404.2,0.71]
[1750756134066,1.3995515,2404.7,2404.2,0.71]
[1750756134766,1.3995515,2404.7,2403.9,0.6571]
[1750756134962,3.2078,2404.5,2403.9,0.6571]
[1750756135268,3.2078,2404.5,2403.9,2.036]
[1750756136769,1.436,2404.4,2403.9,2.036]
[1750756137370,1.436,2404.4,2403.9,0.6571]
[1750756137772,3.2078,2404.2,2403.9,0.6571]
[1750756138764,1.436,2404.4,2403.9,0.6571]
[1750756138963,0.6873,2404.6,2404.1,3.2078]
[1750756140375,1.4107515,2404.7,2404.1,3.2078]
[1750756140577,3.2078,2404.5,2403.9,1.9943]
[1750756140766,3.2078,2404.2,2403.7,0.7152]
[1750756143274,4.6096,2403.4,2402.8,3.2078]
[1750756143575,0.728,2403.5,2402.8,3.2078]
[1750756143777,0.728,2403.5,2403.1,3.2078]
[1750756143978,1.4018,2403.8,2403.1,3.2078]
[1750756144183,1.4018,2403.8,2402.9,1.9762]
[1750756144184,1.4018,2403.8,2403.2,0.6964]
[1750756147174,1.4018,2403.8,2403.2,3.9042]
[1750756147372,3.2078,2403.6,2403.2,0.6964]
[1750756147587,1.4217,2403.5,2402.9,0.6643]
[1750756147871,3.2078,2403.3,2402.8,0.3382049]
[1750756148080,2.0326,2403.2,2402.4,5.2374]
[1750756148281,2.7063,2403.2,2402.4,5.2374]
[1750756149673,3.2078,2403.0,2402.4,3.8935]
[1750756149870,1.3246,2402.9,2402.4,3.8935]
[1750756150070,3.2078,2403.0,2402.4,5.3339]
[1750756150270,3.2078,2403.0,2402.4,5.67492421]
[1750756150476,3.2078,2403.0,2402.4,4.23452421]
[1750756150672,3.2078,2402.5,2401.6,3.2078]
[1750756150872,1.3246,2402.4,2401.6,4.21141481]
[1750756151070,2.0045,2402.4,2401.7,1.3151]
[1750756151671,0.6872,2402.3,2401.6,4.21141481]
[1750756151871,3.2078,2402.5,2401.7,1.3151]
[1750756153381,2.0546,2402.4,2401.7,1.3151]
[1750756158490,2.7566,2402.4,2401.7,1.3151]
[1750756158878,2.7566,2402.4,2401.9,3.2078]
[1750756159979,3.2078,2402.2,2401.6,0.33931481]
[1750756160182,3.2078,2402.2,2401.6,0.6889]
[1750756160380,3.2078,2402.2,2401.7,1.3871]
[1750756161182,3.2078,2402.2,2401.6,1.0234309]
[1750756161481,1.4292,2402.1,2401.6,1.0234309]
[1750756162178,3.2078,2402.2,2401.6,1.0234309]
[1750756162383,3.2078,2402.2,2401.7,1.3871]
[1750756163187,1.3877,2402.4,2401.7,1.3871]
[1750756163391,1.4222,2402.3,2401.7,1.3871]
[1750756163585,1.4222,2402.3,2401.6,1.0234309]
[1750756164393,3.2078,2402.0,2401.6,0.3345309]
[1750756164587,3.2078,2402.0,2401.1,5.1854]
[1750756165083,1.4222,2401.9,2401.1,5.1854]
[1750756166091,3.2078,2401.6,2401.1,3.8682]
[1750756166293,3.2078,2401.3,2400.8,0.6933]
[1750756166489,3.2078,2401.0,2400.7,0.33953712]
[1750756166684,3.2078,2401.0,2400.4,0.6604]
[1750756166878,1.373,2400.9,2400.4,0.6604]
[1750756167684,3.2078,2401.3,2400.5,3.2078]
[1750756167887,3.2078,2401.6,2400.8,3.2078]
[1750756168087,3.2078,2401.6,2400.9,1.4257]
[1750756168389,3.2078,2401.3,2400.9,1.4257]
[1750756170389,3.2078,2401.3,2401.0,0.6993]
[1750756172288,4.561,2401.6,2400.9,1.4257]
[1750756172592,3.2078,2401.3,2400.8,3.2078]
[1750756172781,1.4221,2401.2,2400.8,3.2078]
[1750756173483,3.2078,2401.3,2400.8,3.2078]
[1750756173797,3.2078,2400.9,2400.2,3.2078]
[1750756173990,3.2078,2400.9,2400.3,1.3153]
[1750756174593,4.6299,2400.9,2400.3,1.3153]
[1750756174793,3.2078,2400.9,2400.3,1.3153]
[1750756174996,3.2078,2401.5,2400.8,3.2078]
[1750756175193,0.6607,2401.8,2401.1,3.2078]
[1750756175399,0.6607,2401.8,2401.2,2.0483]
[1750756176095,2.07,2401.8,2401.2,2.0483]
[1750756176492,0.6607,2401.8,2401.2,5.2561]
[1750756176699,3.2078,2401.9,2401.2,5.2561]
[1750756178392,0.6977,2402.1,2401.2,5.2561]
[1750756178900,2.0184,2402.1,2401.2,5.2561]
[1750756179096,3.2078,2401.9,2401.2,5.2561]
[1750756179302,1.3207,2401.8,2401.2,2.0483]
[1750756179604,2.0354,2401.8,2401.2,2.0483]
[1750756179797,3.2078,2401.6,2401.2,0.6856]
[1750756180501,3.2078,2401.6,2400.9,3.8764]
[1750756180701,3.2078,2401.6,2401.0,1.3632]
[1750756181093,1.3207,2401.5,2401.0,1.3632]
[1750756181301,1.3207,2401.5,2400.9,0.6686]
[1750756181703,3.2078,2401.6,2400.9,0.6686]
[1750756181905,3.2078,2401.6,2401.0,1.4127]
[1750756184100,1.4132,2401.5,2401.0,1.4127]
[1750756185403,3.2078,2401.6,2401.0,1.4127]
[1750756185604,0.7147,2401.8,2401.0,1.4127]
[1750756185804,1.3373,2401.7,2401.0,1.4127]
[1750756186603,0.7147,2401.8,2401.0,1.4127]
[1750756186810,3.2078,2401.9,2401.0,3.89202832]
[1750756187002,3.2078,2401.9,2401.0,1.4127]
[1750756187401,4.6627,2401.9,2401.0,1.4127]
[1750756187609,1.0009919,2401.8,2401.0,1.4127]
[1750756187905,4.6627,2401.9,2401.0,1.4127]
[1750756188106,1.00107137,2401.8,2401.0,1.4127]
[1750756188308,4.6627,2401.9,2401.0,1.4127]
[1750756188510,1.00108038,2401.8,2401.0,1.4127]
[1750756188813,3.2078,2401.9,2401.2,3.2078]
[1750756189007,3.2078,2401.9,2401.3,2.1526]
[1750756189211,0.7253,2402.0,2401.3,2.1526]
[1750756191612,0.7253,2402.0,2401.3,4.63192832]
[1750756192008,0.7253,2402.0,2401.5,3.2078]
[1750756192209,0.7253,2402.0,2401.6,2.0387]
[1750756193015,0.6977,2402.1,2401.6,2.0387]
[1750756194708,3.2078,2402.2,2401.6,2.0387]
[1750756195509,3.2078,2402.2,2401.6,4.51802832]
[1750756196018,3.2078,2402.2,2401.6,2.0387]
[1750756196206,3.2078,2402.2,2401.6,4.51802832]
[1750756196609,0.6613,2402.4,2401.6,4.51802832]
[1750756196805,1.00175033,2402.3,2401.6,4.51802832]
[1750756197005,4.20961225,2402.2,2401.6,2.0387]
[1750756197206,1.437,2402.1,2401.6,0.7056]
[1750756197402,1.437,2402.1,2401.6,2.1046]
[1750756198215,3.2078,2402.2,2401.6,2.1046]
[1750756198418,3.2078,2402.2,2401.6,4.58392832]
[1750756199717,0.6613,2402.4,2401.8,3.2078]
[1750756200013,4.6448,2402.5,2401.9,0.6782]
[1750756200319,3.2078,2402.5,2401.9,4.60962832]
[1750756200513,3.2078,2402.5,2402.0,2.47932832]
[1750756200709,3.2078,2402.5,2402.0,1.4521]
[1750756200910,3.2078,2402.5,2402.0,3.93142832]
[1750756202109,4.5406,2402.5,2402.0,3.93142832]
[1750756202712,4.5406,2402.5,2402.0,1.4521]
[1750756202911,4.5406,2402.5,2402.0,3.93142832]
[1750756203417,1.3328,2402.5,2402.0,3.93142832]
[1750756203622,3.2078,2402.4,2401.9,3.15752832]
[1750756203826,1.3626,2402.3,2401.8,5.68712832]
[1750756204027,0.6886,2402.2,2401.8,3.2078]
[1750756204214,1.3626,2402.1,2401.8,3.2078]
[1750756204624,2.0332,2402.1,2401.8,3.2078]
[1750756205214,5.241,2402.1,2401.6,0.7056]
[1750756206918,5.241,2402.1,2401.6,4.53232832]
[1750756207624,3.2078,2402.1,2401.6,4.53232832]
[1750756207826,3.2078,2402.4,2401.6,4.53232832]
[1750756208122,1.3756,2402.3,2401.7,2.47932832]
[1750756208317,3.2078,2402.4,2401.8,4.5552]
[1750756208520,3.2078,2402.4,2401.8,5.2301]
[1750756210321,3.2078,2402.4,2401.8,7.70942832]
[1750756210521,3.2078,2402.4,2401.9,2.47932832]
[1750756210825,3.2078,2402.4,2402.0,1.3831]
[1750756211021,4.5612,2402.4,2402.0,1.3831]
[1750756211726,4.5612,2402.4,2401.8,3.8827]
[1750756211917,4.5612,2402.4,2401.8,6.36202832]
[1750756214122,1.00257527,2402.3,2401.8,3.8827]
[1750756214322,1.3987,2402.2,2401.8,3.8827]
[1750756214523,3.2078,2402.1,2401.7,2.47932832]
[1750756214827,1.4534,2402.0,2401.6,3.18492832]
[1750756215830,1.4534,2402.0,2401.6,0.7056]
[1750756216525,1.4534,2402.0,2401.6,3.18492832]
[1750756216825,1.4534,2402.0,2401.6,0.7056]
[1750756217325,1.4534,2402.0,2401.5,5.68712832]
[1750756220219,3.2078,2401.6,2401.1,2.47932832]
[1750756220528,1.3872,2401.5,2401.0,2.47932832]
[1750756220729,3.2078,2401.3,2400.9,3.17472832]
[1750756220929,2.8067,2401.5,2400.9,3.17472832]
[1750756221131,2.8067,2401.5,2401.0,5.68712832]
[1750756221525,3.2078,2401.6,2401.0,5.68712832]
[1750756221828,3.2078,2401.6,2401.1,3.90282832]
[1750756222529,3.2078,2401.6,2401.1,1.4235]
[1750756223028,5.3703,2401.9,2401.1,3.90282832]
[1750756223230,1.00283365,2401.8,2401.1,3.90282832]
[1750756223431,2.45263365,2401.7,2401.1,3.90282832]
[1750756223633,1.4498,2401.7,2401.1,1.4235]
[1750756226725,1.4498,2401.7,2401.0,5.68712832]
[1750756226937,3.2078,2401.6,2401.0,7.06932832]
[1750756229335,3.2078,2401.6,2401.0,4.59]
[1750756229540,3.2078,2401.1,2400.5,3.85472832]
[1750756229729,1.4234,2401.0,2400.5,1.3754]
[1750756230037,2.0938,2401.0,2400.5,1.3754]
[1750756230638,3.2078,2400.8,2400.5,1.3754]
[1750756232539,4.5927,2400.8,2400.5,1.3754]
[1750756232739,3.2078,2400.8,2400.5,1.3754]
[1750756233140,3.2078,2400.8,2400.5,2.8304]
[1750756234539,3.2078,2400.8,2400.4,3.2078]
[1750756235240,3.2078,2400.5,2400.2,0.7228]
[1750756235541,3.2078,2400.5,2400.0,3.2078]
[1750756235739,1.3788,2400.4,2400.0,3.2078]
[1750756237341,3.2078,2400.5,2400.0,4.5255]
[1750756238545,1.3383,2400.8,2400.0,4.5255]
[1750756238546,3.2078,2400.4,2400.0,4.5255]
[1750756241340,3.5337,2400.9,2400.3,3.2078]
[1750756241545,0.6667,2400.9,2400.4,2.069]
[1750756241740,3.2078,2400.7,2400.0,3.2078]
[1750756241945,3.2078,2400.4,2400.0,5.2768]
[1750756242146,3.2078,2400.4,2400.0,3.9248]
[1750756242343,3.2078,2400.4,2400.0,0.717]
[1750756243444,3.2078,2400.4,2399.7,3.2078]
[1750756243650,3.2078,2400.1,2399.3,4.5783]
[1750756243844,1.3687,2400.0,2399.4,0.6963]
[1750756244144,1.3687,2400.0,2399.4,1.0374495]
[1750756244350,2.0932,2400.0,2399.4,0.6963]
[1750756245641,2.0932,2400.0,2399.5,1.345]
[1750756246145,0.7245,2400.0,2399.5,1.345]
[1750756246743,0.6609,2400.3,2399.6,3.2078]
[1750756246951,3.2078,2400.4,2399.7,1.345]
[1750756248445,3.2078,2400.4,2399.9,3.2078]
[1750756248649,0.668,2400.6,2400.5,0.0637515]
[1750756248946,3.2078,2400.8,2400.5,0.0637515]
[1750756249550,3.2078,2400.8,2400.6,2.6987]
[1750756250752,4.6298,2401.4,2400.6,2.6987]
[1750756250955,4.6298,2401.4,2400.7,3.2078]
[1750756251147,4.6298,2401.4,2400.8,1.3143]
[1750756252951,1.4519,2401.3,2400.8,1.3143]
[1750756255657,4.6298,2401.4,2400.8,1.3143]
[1750756256562,3.913,2401.4,2400.8,1.3143]
[1750756256854,3.2078,2401.4,2400.8,1.3143]
[1750756257849,3.2078,2401.4,2400.8,1.65762709]
[1750756259059,3.2078,2401.4,2400.8,1.3143]
[1750756259360,1.4169,2401.3,2400.8,1.3143]
[1750756261852,3.2078,2401.4,2400.8,1.3143]
[1750756264462,3.2078,2401.7,2400.8,1.3143]
[1750756265167,4.3062,2401.6,2400.8,1.3143]
[1750756265465,3.2078,2401.4,2400.8,1.3143]
[1750756265665,1.4392,2401.3,2400.8,1.3143]
[1750756267958,3.2078,2401.0,2400.4,2.47520567]
[1750756268161,3.2078,2400.6,2400.0,3.90270567]
[1750756268461,3.2078,2400.3,2399.2,2.47520567]
[1750756268768,3.75909999,2400.5,2399.5,3.2078]
[1750756268769,3.2078,2399.9,2399.5,3.2078]
[1750756268967,3.2078,2399.9,2399.3,2.1486]
[1750756270170,4.5863,2400.2,2399.5,3.2078]
[1750756270468,4.5863,2400.2,2399.3,2.1486]
[1750756271271,1.3805,2400.5,2399.9,3.2078]
[1750756271463,1.3805,2400.5,2399.6,3.2078]
[1750756271770,1.4579,2400.4,2399.7,2.0167]
[1750756272169,1.4579,2400.4,2399.8,0.6851]
[1750756275663,0.7022,2400.5,2399.9,1.4137]
[1750756276872,1.3481,2400.4,2399.9,1.4137]